fUSD/lending_fUSD_20251026
["ID","MTS","AMOUNT","RATE_DAILY","PERIOD"]
[392461159,1761506707844,200000.0,0.00015,2]
[392461160,1761506707872,1340490.31598522,0.00015,2]
[392461161,1761506762448,4397.87573582,8e-05,2]
[392461168,1761506835979,287.61899177,0.00038842,50]
[392461169,1761506870190,2189.39085887,0.00013,2]
[392461171,1761506877369,360000.0,0.00015,2]
[392461174,1761506906345,7014.52116298,0.00038842,80]
[392461184,1761506922952,449.55479947,0.0001,2]
[392461185,1761506949212,-540.69650438,0.00018,2]
[392461186,1761506949232,-4547.28341104,0.0002,2]
[392461187,1761506960099,-3637.78228061,0.0002,2]
[392461188,1761506960119,-915.97944603,0.0002001,2]
[392461189,1761506960140,-242.02,0.00020187,2]
[392461190,1761506960161,-4153.59637677,0.00021,2]
[392461191,1761506960181,-16199.30707274,0.000215,2]
[392461192,1761506969095,-440.96703617,0.000215,2]
[392461193,1761506973125,-15.8561096,0.000215,2]
[392461194,1761506973146,-242.02,0.00026676,2]
[392461195,1761506973167,-7327.88561996,0.00028,2]
[392461196,1761506973187,-294.10927449,0.00028685,2]
[392461206,1761507031940,-205.89072551,0.00028685,2]
[392461207,1761507031950,-150.0,0.00028685,2]
[392461208,1761507031959,-161.31299225,0.0003,14]
[392461209,1761507031968,-500.0,0.00031452,2]
[392461210,1761507031977,-168.0,0.00031644,14]
[392461211,1761507031986,-1200.0,0.00031824,3]
[392461212,1761507031996,-400.0,0.00031824,2]
[392461213,1761507032005,-971.0,0.00031826,2]
[392461214,1761507032014,-164.76600462,0.00032,120]
[392461215,1761507032023,-23472.56987717,0.00032,2]
[392461216,1761507032033,-501.82142366,0.00032197,2]
[392461217,1761507032042,-969.0,0.00032205,7]
[392461218,1761507032051,-971.0,0.00032208,7]
[392461219,1761507032060,-150.0,0.00032499,2]
[392461220,1761507032069,-164.76600462,0.00033,120]
[392461221,1761507032079,-21809.95,0.00033006,2]
[392461222,1761507032088,-575.0,0.00033038,7]
[392461223,1761507032097,-242.02,0.00033165,2]
[392461224,1761507032107,-575.0,0.00033186,7]
[392461225,1761507032116,-1836.36124869,0.00033244,2]
[392461226,1761507032126,-675.85089088,0.0003327,2]
[392461227,1761507032135,-332.52624786,0.0003327,2]
[392461228,1761507032144,-575.0,0.00033357,2]
[392461229,1761507032154,-1000.0,0.00033363,2]
[392461230,1761507032164,-203.29,0.00033508,5]
[392461231,1761507032173,-575.0,0.00033606,2]
[392461232,1761507032182,-575.0,0.0003376,2]
[392461233,1761507032191,-500.0,0.00033781,2]
[392461234,1761507032200,-575.0,0.0003379,2]
[392461235,1761507032209,-575.0,0.00033866,7]
[392461236,1761507032218,-164.76600462,0.000339,120]
[392461237,1761507032227,-4315.36,0.00033921,2]
[392461238,1761507032235,-339.0,0.00033955,2]
[392461239,1761507032244,-263.71233762,0.00034,2]
[392461240,1761507032254,-4707.39137319,0.00034017,2]
[392461241,1761507032263,-339.0,0.00034256,120]
[392461242,1761507032272,-340.0,0.00034302,2]
[392461243,1761507032282,-5000.0,0.00034316,2]
[392461244,1761507032291,-492.0,0.00034356,3]
[392461245,1761507032300,-575.0,0.0003439,7]
[392461246,1761507032309,-500.0,0.0003462,3]
[392461247,1761507032318,-971.0,0.00034829,2]
[392461248,1761507032327,-250.0,0.00034948,2]
[392461249,1761507032336,-155.67,0.00034948,2]
[392461250,1761507032345,-2000.0,0.00034994,120]
[392461251,1761507032354,-2000.0,0.00034994,120]
[392461252,1761507032363,-2000.0,0.00034994,120]
[392461253,1761507032372,-2000.0,0.00034994,120]
[392461254,1761507032381,-2000.0,0.00034994,120]
[392461255,1761507032390,-1934.071,0.00034994,120]
[392461256,1761507032399,-164.76600462,0.00035,120]
[392461257,1761507032408,-151.0,0.00035,31]
[392461258,1761507032417,-151.0,0.00035,31]
[392461259,1761507032426,-151.0,0.00035,31]
[392461260,1761507032435,-602.986906,0.00035,31]
[392461261,1761507032445,-602.986906,0.00035,31]
[392461262,1761507032454,-602.986906,0.00035,31]
[392461263,1761507032468,-602.986906,0.00035,31]
[392461264,1761507032477,-151.0,0.00035,31]
[392461265,1761507032485,-151.0,0.00035,31]
[392461266,1761507032494,-151.0,0.00035,31]
[392461267,1761507032503,-227.790355,0.00035,30]
[392461268,1761507032512,-227.790355,0.00035,30]
[392461269,1761507032521,-151.0,0.00035,31]
[392461270,1761507032530,-227.790355,0.00035,30]
[392461271,1761507032539,-227.790355,0.00035,30]
[392461272,1761507032548,-260.0,0.00035014,2]
[392461273,1761507032557,-166.07,0.00035201,2]
[392461274,1761507032566,-340.0,0.00035253,7]
[392461275,1761507032575,-151.0,0.00035485,14]
[392461276,1761507032584,-1959.5860723,0.00035487,2]
[392461277,1761507032594,-5194.7996003,0.00035488,2]
[392461278,1761507032603,-13507.767524,0.00035488,2]
[392461279,1761507032611,-151.0,0.00035488,31]
[392461280,1761507032620,-1425.0,0.00035548,2]
[392461281,1761507032630,-1404.53873763,0.0003559,2]
[392461282,1761507032639,-1425.0,0.00035593,2]
[392461283,1761507032648,-1000.0,0.00035603,120]
[392461284,1761507032658,-1000.0,0.00035603,90]
[392461285,1761507032667,-1000.0,0.00035603,90]
[392461286,1761507032675,-652.0,0.00035603,90]
[392461287,1761507032685,-1425.0,0.00035612,2]
[392461288,1761507032694,-266.619563,0.00035616,31]
[392461289,1761507032703,-151.0,0.00035616,31]
[392461290,1761507032721,-160.240855,0.00035616,31]
[392461291,1761507032731,-207.174729,0.00035616,31]
[392461292,1761507032740,-207.174729,0.00035616,31]
[392461293,1761507032750,-207.174729,0.00035616,31]
[392461294,1761507032759,-207.174729,0.00035616,31]
[392461295,1761507032769,-500.0,0.00035616,2]
[392461296,1761507032778,-1425.0,0.00035617,2]
[392461297,1761507032788,-1425.0,0.00035622,2]
[392461298,1761507032798,-1425.0,0.00035622,2]
[392461299,1761507032807,-339.0,0.00035633,2]
[392461300,1761507032816,-1425.0,0.0003569,2]
[392461301,1761507032826,-3963.46378178,0.000357,2]
[392461302,1761507032835,-1425.0,0.00035703,2]
[392461303,1761507032844,-1425.0,0.00035704,2]
[392461304,1761507032853,-1425.0,0.00035712,2]
[392461305,1761507032863,-575.0,0.00035728,2]
[392461306,1761507032872,-1425.0,0.00035775,2]
[392461307,1761507032882,-1425.0,0.00035785,2]
[392461308,1761507032891,-1000.0,0.000358,2]
[392461309,1761507032900,-33170.7581,0.000358,2]
[392461310,1761507032909,-175.715222,0.000358,31]
[392461311,1761507032919,-160.713353,0.000358,31]
[392461312,1761507032928,-151.0,0.000358,31]
[392461313,1761507032937,-151.0,0.000358,31]
[392461314,1761507032947,-151.0,0.000358,31]
[392461315,1761507032956,-151.0,0.000358,31]
[392461316,1761507032965,-151.0,0.000358,31]
[392461317,1761507032975,-151.0,0.000358,31]
[392461318,1761507032984,-160.636137,0.000358,31]
[392461319,1761507032994,-165.683017,0.000358,31]
[392461320,1761507033003,-151.0,0.000358,31]
[392461321,1761507033012,-151.0,0.000358,31]
[392461322,1761507033022,-151.0,0.000358,31]
[392461323,1761507033031,-151.0,0.000358,31]
[392461324,1761507033041,-151.0,0.000358,31]
[392461325,1761507033050,-151.0,0.000358,31]
[392461326,1761507033059,-151.0,0.000358,31]
[392461327,1761507033068,-2500.0,0.000358,2]
[392461328,1761507033077,-151.0,0.000358,31]
[392461329,1761507033087,-151.0,0.000358,31]
[392461330,1761507033096,-207.174729,0.000358,31]
[392461331,1761507033105,-207.174729,0.000358,31]
[392461332,1761507033114,-207.174729,0.000358,31]
[392461333,1761507033123,-207.174729,0.000358,31]
[392461334,1761507033132,-151.0,0.000358,31]
[392461335,1761507033141,-151.0,0.000358,31]
[392461336,1761507033150,-248.427968,0.000358,31]
[392461337,1761507033160,-151.0,0.000358,31]
[392461338,1761507033169,-602.986906,0.000358,31]
[392461339,1761507033179,-602.986906,0.000358,31]
[392461340,1761507033189,-602.986906,0.000358,31]
[392461341,1761507033198,-602.986906,0.000358,31]
[392461342,1761507033208,-602.986906,0.000358,31]
[392461343,1761507033217,-602.986906,0.000358,31]
[392461344,1761507033226,-602.986906,0.000358,31]
[392461345,1761507033235,-602.986906,0.000358,31]
[392461346,1761507033245,-151.0,0.000358,31]
[392461347,1761507033255,-151.0,0.000358,31]
[392461348,1761507033264,-151.0,0.000358,31]
[392461349,1761507033273,-151.0,0.000358,31]
[392461350,1761507033282,-175.879341,0.000358,31]
[392461351,1761507033292,-227.790355,0.000358,30]
[392461352,1761507033301,-227.790355,0.000358,30]
[392461353,1761507033310,-227.790355,0.000358,30]
[392461354,1761507033319,-151.0,0.000358,31]
[392461355,1761507033329,-227.790355,0.000358,30]
[392461356,1761507033338,-184.524457,0.000358,31]
[392461357,1761507033347,-227.790355,0.000358,30]
[392461358,1761507033356,-227.790355,0.000358,30]
[392461359,1761507033366,-227.790355,0.000358,30]
[392461360,1761507033375,-227.790355,0.000358,30]
[392461361,1761507033385,-969.0,0.00035829,2]
[392461362,1761507033395,-1000.0,0.0003589,2]
[392461363,1761507033404,-11054.16006464,0.000359,2]
[392461364,1761507033499,-1626.5616646,0.000359,2]
[392461368,1761507037848,-500.0,0.00033005,7]
[392461369,1761507037857,-500.0,0.00033005,7]
[392461370,1761507037866,-500.0,0.00033005,7]
[392461371,1761507037876,-489.60396525,0.00033005,7]
[392461372,1761507037885,-500.0,0.00033005,7]
[392461373,1761507037895,-151.0,0.00035488,31]
[392461374,1761507037904,-161.401575,0.00035488,31]
[392461375,1761507037914,-151.0,0.000358,31]
[392461376,1761507037924,-13112.45322245,0.000359,2]
[392461377,1761507037935,-893.940995,0.000359,2]
[392461378,1761507037951,-40131.39775331,0.000359,2]
[392461379,1761507037960,-151.0,0.000359,31]
[392461380,1761507037970,-151.0,0.000359,31]
[392461381,1761507037980,-151.0,0.000359,31]
[392461382,1761507037989,-151.0,0.000359,31]
[392461383,1761507037998,-151.0,0.000359,31]
[392461384,1761507038007,-151.0,0.000359,31]
[392461385,1761507038016,-151.0,0.000359,31]
[392461386,1761507038026,-151.0,0.000359,31]
[392461387,1761507038035,-161.7438,0.000359,31]
[392461388,1761507038044,-151.0,0.000359,31]
[392461389,1761507038054,-151.0,0.000359,31]
[392461390,1761507038063,-151.0,0.000359,31]
[392461391,1761507038073,-151.0,0.000359,31]
[392461392,1761507038082,-151.0,0.000359,31]
[392461393,1761507038091,-152.980349,0.000359,31]
[392461394,1761507038100,-151.0,0.000359,31]
[392461395,1761507038109,-151.0,0.000359,31]
[392461396,1761507038118,-151.0,0.000359,31]
[392461397,1761507038127,-156.994875,0.000359,31]
[392461398,1761507038137,-152.782553,0.000359,31]
[392461399,1761507038146,-404.85,0.000359,14]
[392461400,1761507038155,-151.0,0.000359,15]
[392461401,1761507038165,-156.258059,0.000359,31]
[392461402,1761507038175,-151.0,0.000359,31]
[392461403,1761507038184,-151.0,0.000359,31]
[392461404,1761507038194,-151.0,0.000359,31]
[392461405,1761507038203,-151.0,0.000359,31]
[392461406,1761507038213,-151.0,0.000359,31]
[392461407,1761507038223,-151.0,0.000359,31]
[392461408,1761507038232,-152.773944,0.000359,31]
[392461409,1761507038241,-151.0,0.000359,31]
[392461410,1761507038250,-153.592917,0.000359,31]
[392461411,1761507038260,-153.184077,0.000359,31]
[392461412,1761507038269,-151.0,0.000359,31]
[392461413,1761507038278,-162.499931,0.000359,31]
[392461414,1761507038288,-151.0,0.000359,31]
[392461415,1761507038297,-155.421306,0.000359,31]
[392461416,1761507038306,-151.0,0.000359,31]
[392461417,1761507038315,-151.0,0.000359,31]
[392461418,1761507038325,-151.0,0.000359,31]
[392461419,1761507038334,-151.0,0.000359,31]
[392461420,1761507038343,-245.898374,0.000359,31]
[392461421,1761507038352,-151.0,0.000359,31]
[392461422,1761507038362,-290.041195,0.000359,31]
[392461423,1761507038370,-151.0,0.000359,31]
[392461424,1761507038379,-151.0,0.000359,31]
[392461425,1761507038389,-151.0,0.000359,31]
[392461426,1761507038398,-1206.32797475,0.000359,2]
[392461427,1761507038408,-151.0,0.000359,31]
[392461428,1761507038417,-151.0,0.000359,31]
[392461429,1761507038426,-151.0,0.000359,31]
[392461430,1761507038435,-151.0,0.000359,31]
[392461431,1761507038446,-151.0,0.000359,31]
[392461432,1761507038455,-151.0,0.000359,31]
[392461433,1761507038465,-203.416642,0.000359,31]
[392461434,1761507038478,-151.0,0.000359,31]
[392461435,1761507038493,-207.174729,0.000359,31]
[392461436,1761507038502,-207.174729,0.000359,31]
[392461437,1761507038511,-207.174729,0.000359,31]
[392461438,1761507038521,-207.174729,0.000359,31]
[392461439,1761507038530,-256.9611394,0.000359,2]
[392461440,1761507038540,-151.0,0.000359,31]
[392461441,1761507038550,-602.986906,0.000359,31]
[392461442,1761507038559,-602.986906,0.000359,31]
[392461443,1761507038569,-602.986906,0.000359,31]
[392461444,1761507038578,-602.986906,0.000359,31]
[392461445,1761507038588,-151.0,0.000359,31]
[392461446,1761507038598,-151.0,0.000359,31]
[392461447,1761507038607,-227.790355,0.000359,30]
[392461448,1761507038617,-227.790355,0.000359,30]
[392461449,1761507038626,-227.790355,0.000359,30]
[392461450,1761507038635,-227.790355,0.000359,30]
[392461451,1761507038644,-151.0,0.000359,31]
[392461452,1761507038654,-151.0,0.00035906,31]
[392461453,1761507038663,-153.279972,0.00035906,31]
[392461454,1761507038673,-151.0,0.00035906,31]
[392461455,1761507038682,-151.0,0.00035906,31]
[392461456,1761507038692,-1142.45984123,0.0003597,2]
[392461457,1761507038702,-151.859531,0.00035973,31]
[392461458,1761507038711,-151.0,0.00035973,31]
[392461459,1761507038720,-163.05,0.0003599,2]
[392461460,1761507038729,-500.0,0.00035998,7]
[392461461,1761507038739,-555.01,0.00035998,9]
[392461462,1761507038748,-500.0,0.00035999,7]
[392461463,1761507038757,-500.0,0.00035999,7]
[392461464,1761507038767,-151.0,0.00035999,31]
[392461465,1761507038776,-153.447603,0.00035999,31]
[392461466,1761507038785,-151.0,0.00035999,31]
[392461467,1761507038795,-151.0,0.00035999,31]
[392461468,1761507038804,-151.0,0.00035999,31]
[392461469,1761507038813,-151.0,0.00035999,15]
[392461470,1761507038822,-151.0,0.00035999,31]
[392461471,1761507038832,-151.0,0.00035999,31]
[392461472,1761507038841,-151.0,0.00035999,31]
[392461473,1761507038851,-151.0,0.00035999,31]
[392461474,1761507038860,-151.0,0.00035999,31]
[392461475,1761507038869,-151.0,0.00035999,31]
[392461476,1761507038879,-151.0,0.00035999,31]
[392461477,1761507038888,-151.0,0.00035999,31]
[392461478,1761507038898,-151.0,0.00035999,31]
[392461479,1761507038907,-151.0,0.00035999,31]
[392461480,1761507038918,-151.0,0.00035999,31]
[392461481,1761507038927,-555.01,0.00035999,9]
[392461482,1761507038937,-555.01,0.00035999,9]
[392461483,1761507038946,-1367.59155247,0.00035999,120]
[392461484,1761507038956,-50792.05806352,0.00036,2]
[392461485,1761507038965,-1577.7470593,0.00036,2]
[392461486,1761507038979,-6124.86764287,0.00036,2]
[392461487,1761507038995,-1240.66059968,0.00036,2]
[392461488,1761507039006,-981.36511929,0.00036,2]
[392461490,1761507039981,-151.0,0.00035488,31]
[392461491,1761507039991,-151.0,0.000358,31]
[392461492,1761507040001,-151.0,0.000359,31]
[392461493,1761507040010,-1551.9062429,0.00036,2]
[392461494,1761507040307,-1247.89476953,0.00036,2]
[392461495,1761507040319,-49576.72454336,0.00036,2]
[392461496,1761507040330,-941.35019672,0.00036,2]
[392461532,1761507045994,-151.0,0.00035488,31]
[392461533,1761507046005,-151.0,0.00035488,31]
[392461534,1761507046015,-24.39999742,0.000358,31]
[392461539,1761507833092,2000.0,0.00031018,120]
[392461540,1761507833359,2000.0,0.00031018,120]
[392461541,1761507834280,2000.0,0.00031018,120]
[392461542,1761507834567,2000.0,0.00031018,120]
[392461543,1761507834829,2000.0,0.00031018,120]
[392461544,1761507835100,2000.0,0.00031018,120]
[392461545,1761507895905,2000.0,0.00031018,120]
[392461546,1761507896192,2000.0,0.00031018,120]
[392461547,1761507896460,2000.0,0.00031018,120]
[392461548,1761507896886,2000.0,0.00031018,120]
[392461549,1761507897022,2000.0,0.00031018,120]
[392461550,1761507897296,2000.0,0.00031018,120]
[392461551,1761507897595,2000.0,0.00031018,120]
[392461552,1761507898222,2000.0,0.00031018,120]
[392461553,1761507898506,2000.0,0.00031018,120]
[392461554,1761507898841,2000.0,0.00031018,120]
[392461555,1761507899084,2000.0,0.00031018,120]
[392461556,1761507899383,2000.0,0.00031018,120]
[392461557,1761507899672,2000.0,0.00031018,120]
[392461558,1761507899933,2000.0,0.00031018,120]
[392461559,1761507991142,-253.09,0.00031669,2]
[392461560,1761507991163,-67.25704695,0.00032,120]
[392461561,1761508032088,-97.50895769,0.00032,120]
[392461562,1761508032109,-185.42162884,0.00032517,2]
[392461563,1761508032131,-29.7224673,0.00032617,30]
[392461566,1761508033118,-136.9375327,0.00032617,30]
[392461567,1761508033141,-59.46207364,0.000329,67]
[392461569,1761508109752,1362.0,0.00038813,50]
[392461570,1761508226540,1455.09591,0.0003,120]
[392461576,1761508232380,-182.13120475,0.00032,120]
[392461577,1761508232390,-182.13120475,0.00033,120]
[392461578,1761508232399,-182.13120475,0.000339,120]
[392461579,1761508232408,-273.0,0.0003395,2]
[392461580,1761508232418,-462.0,0.00034144,2]
[392461581,1761508232427,-150.0,0.00034164,2]
[392461582,1761508232437,-150.0,0.00034195,2]
[392461583,1761508232446,-150.0,0.00034195,120]
[392461584,1761508232455,-352.0,0.00034212,2]
[392461585,1761508232466,-279.0,0.00034227,2]
[392461586,1761508232475,-168.0,0.00034248,2]
[392461587,1761508232485,-363.0,0.00034281,2]
[392461589,1761508232494,-272.0,0.00034296,2]
[392461591,1761508232504,-1000.0,0.00034349,2]
[392461593,1761508232513,-570.0,0.0003435,2]
[392461595,1761508232522,-1600.0,0.00034355,120]
[392461597,1761508232531,-200.0,0.00034363,2]
[392461598,1761508232540,-163.0,0.00034364,2]
[392461601,1761508232549,-204.91,0.00034366,30]
[392461604,1761508232558,-242.15,0.00034408,2]
[392461607,1761508232567,-1600.0,0.00034417,3]
[392461610,1761508232576,-168.0,0.00034417,2]
[392461613,1761508232585,-1810.0,0.00034418,2]
[392461616,1761508232594,-168.0,0.00034423,2]
[392461619,1761508232603,-314.0,0.00034431,3]
[392461622,1761508232612,-400.0,0.00034431,2]
[392461625,1761508232621,-498.0,0.00034432,2]
[392461628,1761508232630,-1200.0,0.00034434,3]
[392461631,1761508232640,-1585.31,0.00034436,120]
[392461634,1761508232648,-1500.0,0.00034459,120]
[392461636,1761508232656,-295.0,0.00034487,2]
[392461638,1761508232665,-168.0,0.00034491,2]
[392461640,1761508232675,-369.0,0.00034501,2]
[392461641,1761508232684,-1756.0,0.00034555,2]
[392461642,1761508232693,-367.14703503,0.00034597,2]
[392461643,1761508232703,-999.0,0.00034617,3]
[392461644,1761508232712,-699.0,0.00034624,2]
[392461645,1761508232721,-249.0,0.00034692,2]
[392461646,1761508232730,-168.0,0.00034746,2]
[392461647,1761508232739,-610.0,0.0003476,2]
[392461648,1761508232748,-1094.0,0.0003476,2]
[392461649,1761508232757,-188.22,0.0003481,2]
[392461650,1761508232766,-448.0,0.00034829,2]
[392461651,1761508232774,-168.0,0.00034832,120]
[392461652,1761508232783,-168.0,0.00034844,7]
[392461653,1761508232792,-780.0,0.0003486,2]
[392461654,1761508232800,-961.0,0.00034897,2]
[392461655,1761508232809,-151.0,0.00034961,2]
[392461656,1761508232818,-151.0,0.00034961,2]
[392461657,1761508232827,-512.0,0.00034966,2]
[392461658,1761508232836,-4210.93,0.00034982,2]
[392461659,1761508232845,-182.13120475,0.00035,120]
[392461660,1761508232854,-1339.0,0.00035034,2]
[392461661,1761508232863,-150.0,0.00035063,4]
[392461662,1761508232872,-150.0,0.00035063,4]
[392461663,1761508232881,-150.0,0.00035063,4]
[392461664,1761508232890,-150.0,0.00035063,4]
[392461665,1761508232899,-533.15758864,0.00035089,2]
[392461666,1761508232908,-253.09,0.00035093,2]
[392461667,1761508232917,-500.0,0.00035117,7]
[392461668,1761508232926,-500.0,0.00035117,7]
[392461669,1761508232935,-500.0,0.00035117,7]
[392461670,1761508232944,-500.0,0.00035117,7]
[392461671,1761508232953,-612.84786107,0.00035117,7]
[392461672,1761508232962,-174.395763,0.00035117,7]
[392461673,1761508232971,-500.0,0.00035117,7]
[392461674,1761508232980,-500.0,0.00035117,7]
[392461675,1761508232989,-500.0,0.00035117,7]
[392461676,1761508232998,-500.0,0.00035117,7]
[392461677,1761508233007,-500.0,0.00035117,7]
[392461678,1761508233016,-500.0,0.00035117,7]
[392461679,1761508233026,-500.0,0.00035117,7]
[392461680,1761508233035,-500.0,0.00035117,7]
[392461681,1761508233045,-572.13246688,0.00035117,7]
[392461682,1761508233054,-500.0,0.00035117,7]
[392461683,1761508233064,-17671.51,0.0003512,2]
[392461684,1761508233073,-166.66,0.00035175,2]
[392461685,1761508233082,-168.0,0.0003527,2]
[392461686,1761508233092,-1065.67084,0.0003564,2]
[392461687,1761508233101,-1425.0,0.00035722,2]
[392461688,1761508233110,-168.0,0.00035724,2]
[392461689,1761508233119,-157.67007675,0.00035755,7]
[392461690,1761508233129,-660.0,0.00035797,2]
[392461691,1761508233138,-602.2665,0.000358,2]
[392461692,1761508233148,-1425.0,0.00035802,2]
[392461693,1761508233158,-1425.0,0.00035808,2]
[392461694,1761508233167,-168.0,0.0003583,2]
[392461695,1761508233176,-1000.0,0.00035835,7]
[392461696,1761508233185,-1425.0,0.00035838,2]
[392461697,1761508233194,-1425.0,0.00035888,2]
[392461698,1761508233203,-1000.0,0.00035895,7]
[392461699,1761508233212,-210.1067713,0.00035899,2]
[392461700,1761508233221,-3600.8114812,0.000359,2]
[392461701,1761508233230,-1085.69517732,0.000359,2]
[392461702,1761508233239,-263.96207467,0.000359,2]
[392461703,1761508233249,-1425.0,0.00035945,2]
[392461704,1761508233259,-1425.0,0.00035952,2]
[392461705,1761508233268,-1425.0,0.00035952,2]
[392461706,1761508233277,-1000.0,0.0003597,2]
[392461707,1761508233286,-320.3440551,0.00035972,2]
[392461708,1761508233295,-3511.6668771,0.00035972,2]
[392461709,1761508233304,-348.9,0.00035973,2]
[392461710,1761508233313,-285.51681024,0.00035973,5]
[392461711,1761508233322,-251.44244901,0.00035973,5]
[392461712,1761508233332,-838.13,0.0003599,2]
[392461713,1761508233341,-838.13,0.0003599,2]
[392461714,1761508233350,-838.13,0.0003599,2]
[392461715,1761508233359,-838.13,0.0003599,2]
[392461716,1761508233368,-838.13,0.0003599,2]
[392461717,1761508233379,-1425.0,0.00035993,2]
[392461718,1761508233389,-413.51898922,0.00035996,2]
[392461719,1761508233399,-1333.6188014,0.00035996,2]
[392461720,1761508233410,-7541.4930505,0.00035996,2]
[392461721,1761508233424,-28303.5277208,0.00035996,2]
[392461722,1761508233435,-875.9207345,0.00035996,2]
[392461723,1761508233446,-151.0,0.00035996,31]
[392461724,1761508233457,-151.0,0.00035996,31]
[392461725,1761508233467,-151.0,0.00035996,31]
[392461726,1761508233476,-151.0,0.00035996,31]
[392461727,1761508233486,-151.0,0.00035996,31]
[392461728,1761508233496,-151.0,0.00035996,15]
[392461729,1761508233507,-224.33407,0.00035996,31]
[392461730,1761508233517,-189.996922,0.00035996,31]
[392461731,1761508233528,-151.0,0.00035996,31]
[392461732,1761508233538,-151.0,0.00035996,31]
[392461733,1761508233548,-151.0,0.00035996,31]
[392461734,1761508233558,-1717.4486441,0.00035996,2]
[392461735,1761508233569,-414.8,0.00035998,9]
[392461736,1761508233579,-500.0,0.00035998,7]
[392461737,1761508233589,-10964.06218748,0.00035999,2]
[392461738,1761508233600,-500.0,0.00035999,9]
[392461739,1761508233611,-500.0,0.00035999,9]
[392461740,1761508233622,-151.0,0.00035999,31]
[392461741,1761508233633,-151.0,0.00035999,31]
[392461742,1761508233644,-151.0,0.00035999,31]
[392461743,1761508233654,-1004.3755,0.00035999,2]
[392461744,1761508233664,-500.0,0.00035999,7]
[392461745,1761508233675,-500.0,0.00035999,7]
[392461746,1761508233685,-151.0,0.00035999,31]
[392461747,1761508233695,-156.881646,0.00035999,31]
[392461748,1761508233705,-151.0,0.00035999,31]
[392461749,1761508233715,-151.0,0.00035999,31]
[392461750,1761508233724,-151.0,0.00035999,31]
[392461751,1761508233734,-151.0,0.00035999,31]
[392461752,1761508233744,-97916.2082602,0.00036,31]
[392461753,1761508233755,-108972.50943801,0.00036,2]
[392461754,1761508233769,-15982.71191757,0.00036,2]
[392461756,1761508238174,-11881.78100031,0.00036,2]
[392461757,1761508238383,-271.23377012,0.00036,2]
[392461759,1761508240354,-8522.52739555,0.00036,2]
[392461760,1761508240659,-34.73922838,0.00036,2]
[392461761,1761508240671,-914.81898001,0.00036,2]
[392461839,1761508243260,-338.38802509,0.00036,2]
[392461840,1761508243546,-299.69833443,0.00036,2]
[392461847,1761508246316,-12.76970026,0.00036,2]
[392461848,1761508246328,-1003.97499998,0.00036,2]
[392461849,1761508246345,-970.68400462,0.00036,2]
[392461851,1761508270253,-185.45208944,0.00018132,2]
[392461852,1761508300438,3000.0,0.00038813,120]
[392461854,1761508409452,2625.85,0.00031507,120]
[392461855,1761508416450,1450.0,0.00031507,120]